bitfinex/quotes_ETHUSD_20220219
["timestamp","ask_amount","ask_price","bid_price","bid_amount"]
[1645258333462,10.85,2819.1,2819.0,9e-05]
[1645258333667,17.62486,2819.1,2819.0,9e-05]
[1645258333862,12.6250485,2818.8,2818.6,0.25]
[1645258334061,12.62505,2818.8,2817.6,0.6]
[1645258334263,10.85,2818.8,2817.5,3.1563]
[1645258334470,10.85,2818.6,2817.5,3.1563]
[1645258334669,0.95180589,2817.8,2817.2,2.09009455]
[1645258334866,1.83948589,2817.8,2817.2,1.19178587]
[1645258335065,1.83948589,2817.8,2817.2,0.00395885]
[1645258335766,0.95180589,2817.8,2817.2,0.00395885]
[1645258335966,0.95180589,2817.8,2817.0,0.00395885]
[1645258336165,0.95180589,2817.8,2817.1,1.14046799]
[1645258336364,0.95180589,2817.8,2817.2,0.00395885]
[1645258336565,3.003,2818.1,2817.2,0.00395885]
[1645258337222,6.503,2818.1,2817.2,0.00395885]
[1645258337613,7.39281713,2818.1,2817.2,0.00395885]
[1645258337813,7.39281713,2818.1,2817.2,1.00395885]
[1645258338013,7.39281713,2818.1,2817.2,0.00395885]
[1645258338214,7.39281713,2818.1,2817.2,1.00395885]
[1645258338215,3.89281713,2818.1,2817.2,1.00395885]
[1645258338414,7.39281713,2818.1,2817.4,0.00230773]
[1645258339416,7.39281713,2818.1,2817.2,0.00395885]
[1645258339617,7.39281713,2818.1,2817.4,0.00230776]
[1645258339824,3.89281713,2818.1,2817.4,0.00230776]
[1645258340218,0.90498768,2817.6,2817.4,0.00230776]
[1645258340476,6.503,2818.1,2817.4,0.00230776]
[1645258340673,3.003,2818.1,2817.2,0.00395885]
[1645258340876,3.003,2818.1,2817.4,0.00217828]
[1645258341479,3.003,2818.1,2817.8,0.90741131]
[1645258341676,6.392,2818.3,2817.8,0.90741131]
[1645258341677,3.6774,2818.3,2817.8,0.90741131]
[1645258341874,0.1774,2818.3,2817.8,0.90741131]
[1645258342077,3.6774,2818.8,2817.8,0.90741131]
[1645258342581,3.5,2818.8,2817.8,0.90741131]
[1645258342980,0.91675204,2818.4,2817.8,0.90741131]
[1645258343577,1.2007,2818.7,2817.8,0.90741131]
[1645258345014,3.5,2818.6,2817.8,0.90741131]
[1645258345209,1.2007,2818.7,2817.8,0.90741131]
[1645258346213,1.02242603,2818.5,2817.8,0.90741131]
[1645258346614,1.02242603,2818.5,2817.8,2.39468131]
[1645258347017,1.02242603,2818.5,2817.8,2.91468131]
[1645258347519,1.02242603,2818.5,2817.8,2.02741131]
[1645258348364,1.02242603,2818.5,2817.8,0.52]
[1645258348566,1.02242603,2818.5,2817.5,1.5171]
[1645258348767,3.5,2818.4,2817.5,1.8171]
[1645258348966,3.5,2818.4,2817.5,1.2171]
[1645258349164,1.02242603,2818.5,2817.5,1.8171]
[1645258349566,0.95202547,2818.0,2817.5,1.2171]
[1645258349966,0.95202547,2818.0,2817.4,1.1164885]
[1645258350169,0.95202547,2818.0,2817.4,1.71429402]
[1645258350566,0.95202547,2818.0,2817.4,1.71648842]
[1645258351466,0.95202547,2818.0,2817.4,1.71429402]
[1645258351711,0.95202547,2818.0,2817.4,1.71648881]
[1645258352315,0.95202547,2818.0,2817.4,0.00219479]
[1645258352514,0.95202547,2818.0,2817.4,0.60219479]
[1645258352718,0.95202547,2818.0,2817.3,1.8971]
[1645258352915,0.95202547,2818.0,2817.4,0.00219479]
[1645258353915,0.95202547,2818.0,2817.2,0.94093392]
[1645258354116,0.95202547,2818.0,2817.4,0.00219479]
[1645258355116,0.95202547,2818.0,2817.2,1.65089392]
[1645258355317,0.95202547,2818.0,2817.2,0.94093392]
[1645258355580,0.95202547,2818.0,2817.2,0.00395885]
[1645258357767,0.9508321,2818.0,2817.2,0.00395885]
[1645258359218,0.9508321,2818.0,2817.4,0.00236422]
[1645258360217,0.9508321,2818.0,2817.2,0.90226753]
[1645258360418,0.9508321,2818.0,2817.4,0.00236425]
[1645258360621,0.86855679,2817.5,2817.4,0.00236425]
[1645258361419,0.86855679,2817.5,2817.2,0.90226753]
[1645258361420,0.86855679,2817.5,2817.2,0.00395885]
[1645258361621,0.86855679,2817.5,2817.3,0.00236423]
[1645258362220,3.5,2817.9,2817.3,0.00236423]
[1645258362221,4.6923,2817.9,2817.3,0.00236423]
[1645258362721,4.6923,2817.9,2817.4,0.00236422]
[1645258363360,0.84794616,2817.6,2817.4,0.00236422]
[1645258363762,0.84794616,2817.6,2817.2,0.00395885]
[1645258363963,0.44473441,2817.6,2817.4,0.00236701]
[1645258364865,0.44473441,2817.6,2817.2,0.00395885]
[1645258365466,1.1923,2817.9,2817.2,0.00395885]
[1645258366466,3.5,2817.8,2817.2,0.00395885]
[1645258366730,3.5,2817.8,2816.9,4.73690868]
[1645258366731,3.5,2817.8,2817.0,0.00395885]
[1645258366920,0.97432667,2817.5,2817.0,0.00395885]
[1645258367720,0.97432667,2817.5,2817.1,0.00236432]
[1645258368519,0.97432667,2817.5,2817.0,0.00395885]
[1645258368924,0.97432667,2817.5,2817.2,0.0023643]
[1645258369721,0.97432667,2817.5,2817.0,0.00395885]
[1645258369920,0.97432667,2817.5,2817.2,0.00236428]
[1645258371063,0.97432667,2817.5,2817.0,0.00395885]
[1645258371266,0.97432667,2817.5,2817.2,0.00236428]
[1645258372165,0.97432667,2817.5,2817.0,0.00395885]
[1645258372363,0.97432667,2817.5,2817.2,0.00236428]
[1645258373374,0.97432667,2817.5,2817.0,0.00395885]
[1645258373572,0.97432667,2817.5,2817.2,0.00236428]
[1645258374613,0.97432667,2817.5,2817.0,0.00395885]
[1645258374812,0.97432667,2817.5,2817.2,0.00236428]
[1645258375814,0.97432667,2817.5,2817.1,0.90226753]
[1645258376015,0.97432667,2817.5,2817.2,0.00236428]
[1645258377016,0.97432667,2817.5,2817.1,0.90226753]
[1645258377214,1.1923,2817.9,2817.2,0.00236428]
[1645258377414,1.1923,2817.9,2817.2,0.00632313]
[1645258378065,1.1923,2817.9,2817.2,0.90463181]
[1645258378261,1.1923,2817.9,2817.2,1.20226753]
[1645258378462,1.1923,2817.9,2817.4,0.0023642]
[1645258378665,1.05200895,2817.7,2817.4,0.0023642]
[1645258379361,1.05200895,2817.7,2817.2,1.20226753]
[1645258379563,1.05200895,2817.7,2817.4,0.0023642]
[1645258380568,1.05200895,2817.7,2817.2,1.20226753]
[1645258380766,1.05200895,2817.7,2817.4,0.0023642]
[1645258381816,1.05200895,2817.7,2817.2,0.00395885]
[1645258382014,1.05200895,2817.7,2817.4,0.0023642]
[1645258383015,1.05200895,2817.7,2817.2,0.90226753]
[1645258383215,1.05200895,2817.7,2817.4,0.0023642]
[1645258384214,1.05056329,2817.7,2817.2,0.90226753]
[1645258384414,1.05056329,2817.7,2817.4,0.0023642]
[1645258385468,1.05056329,2817.7,2817.2,0.90226753]
[1645258385675,1.05056329,2817.7,2817.4,0.0023642]
[1645258385869,1.1923,2817.9,2817.4,0.0023642]
[1645258386272,10.0,2818.0,2817.4,0.0023642]
[1645258386477,10.0,2818.0,2817.5,0.89830868]
[1645258386872,10.0,2818.0,2817.5,1.19830868]
[1645258387170,10.0,2818.0,2817.5,2.08566868]
[1645258387371,10.0,2818.0,2817.5,2.04277829]
[1645258387573,10.0,2818.0,2817.5,0.84446961]
[1645258388377,10.0,2818.0,2817.5,1.73180961]
[1645258388573,10.0,2818.0,2817.5,2.08564868]
[1645258388772,10.0,2818.0,2817.5,1.78564868]
[1645258388979,10.0,2818.0,2817.5,0.89830868]
[1645258389219,1.50641604,2817.9,2817.4,0.00236428]
[1645258389622,10.0,2818.0,2817.4,0.90067296]
[1645258390020,10.0,2818.0,2817.4,2.07992683]
[1645258390218,10.0,2818.0,2817.4,2.07756255]
[1645258390419,10.0,2818.0,2817.4,2.07992681]
[1645258391423,10.0,2818.0,2817.4,2.07756255]
[1645258391629,10.0,2818.0,2817.4,0.90067294]
[1645258392221,0.01447568,2817.9,2817.4,0.90067294]
[1645258392621,0.01447568,2817.9,2817.4,0.89830868]
[1645258392822,0.01447568,2817.9,2817.5,0.89830868]
[1645258395870,0.01447568,2817.9,2817.4,0.00236426]
[1645258396070,3.51447568,2817.9,2817.4,0.00236426]
[1645258396271,3.51447568,2817.9,2817.3,1.71830868]
[1645258396471,0.01447568,2817.9,2817.4,0.00236424]
[1645258396731,0.01447568,2817.9,2817.4,0.90067292]
[1645258397319,0.01447568,2817.9,2817.4,1.19830868]
[1645258397521,0.01447568,2817.9,2817.5,0.89830868]
[1645258397918,0.01447568,2817.9,2817.4,0.90067292]
[1645258398618,0.01447568,2817.9,2817.5,0.89830868]
[1645258399016,0.01447568,2817.9,2817.4,0.90067292]
[1645258399217,0.01447568,2817.9,2817.5,0.89830868]
[1645258399616,0.01447568,2817.9,2817.5,1.49830868]
[1645258400019,0.01447568,2817.9,2817.5,0.89830868]
[1645258400663,9.65314404,2818.0,2817.5,0.89830868]
[1645258401564,9.65314404,2818.0,2817.4,0.90067296]
[1645258402068,9.65314404,2818.0,2817.5,0.89830868]
[1645258402263,0.01577721,2817.8,2817.5,0.89830868]
[1645258402865,0.01577721,2817.8,2817.4,0.90067294]
[1645258403370,0.01577721,2817.8,2817.4,0.89830868]
[1645258403863,0.01577721,2817.8,2817.4,0.9006729]
[1645258404719,0.01577721,2817.8,2817.4,0.89830868]
[1645258404917,0.01577721,2817.8,2817.4,0.9006729]
[1645258405814,0.01577721,2817.8,2817.4,0.89830868]
[1645258406014,0.01577721,2817.8,2817.4,0.9006729]
[1645258407017,0.01577721,2817.8,2817.4,0.89830868]
[1645258407417,0.01577721,2817.8,2817.4,0.9006729]
[1645258408276,0.01577721,2817.8,2817.4,0.89830868]
[1645258408473,0.01577721,2817.8,2817.4,0.9006729]
[1645258409476,0.01577721,2817.8,2817.4,0.89830868]
[1645258409675,0.01577721,2817.8,2817.4,0.9006729]
[1645258410676,0.01577721,2817.8,2817.4,0.89830868]
[1645258410877,0.01577721,2817.8,2817.4,0.9006729]
[1645258411919,0.01577721,2817.8,2817.4,0.89830868]
[1645258412118,0.86500985,2817.6,2817.4,0.9006729]
[1645258412918,0.86500985,2817.6,2817.4,0.89830868]
[1645258413318,9.65314404,2818.0,2817.4,0.90067289]
[1645258413517,1.50633932,2817.9,2817.4,0.90067289]
[1645258413918,1.50633932,2817.9,2817.5,0.89830868]
[1645258414117,1.50633932,2817.9,2817.4,0.89830868]
[1645258414319,1.16217675,2817.5,2817.4,0.89830868]
[1645258414518,1.16217675,2817.5,2817.4,0.90067294]
[1645258415121,9.65314404,2818.0,2817.4,0.90067294]
[1645258415321,1.50638477,2817.9,2817.4,0.90067294]
[1645258415576,1.50638477,2817.9,2817.4,0.89830868]
[1645258416173,0.99030712,2817.7,2817.4,0.89830868]
[1645258416775,0.99030712,2817.7,2817.4,0.90067288]
[1645258417271,0.99030712,2817.7,2817.6,0.03193421]
[1645258418872,2.49679433,2817.7,2817.6,0.03193421]
[1645258422220,2.54792626,2817.7,2817.4,0.00236424]
[1645258422421,1.04143905,2817.7,2817.4,0.00236424]
[1645258422727,1.04143905,2817.7,2817.3,1.19830868]
[1645258422982,1.04143905,2817.7,2817.4,0.0023642]
[1645258423873,1.04143905,2817.7,2817.3,1.19830868]
[1645258423874,0.05113193,2817.7,2817.3,1.19830868]
[1645258424076,0.05113193,2817.7,2817.4,0.0023642]
[1645258425079,0.05113193,2817.7,2817.3,1.49830868]
[1645258425282,0.05113193,2817.7,2817.4,0.0023642]
[1645258426279,0.05113193,2817.7,2817.3,1.49830868]
[1645258426480,0.05113193,2817.7,2817.4,0.0023642]
[1645258427518,0.05113193,2817.7,2817.3,1.49830868]
[1645258427820,0.05113193,2817.7,2817.4,0.0023642]
[1645258428617,0.05113193,2817.7,2817.3,1.49830868]
[1645258428818,0.05113193,2817.7,2817.4,0.0023642]
[1645258429919,0.05113193,2817.7,2817.3,1.49830868]
[1645258430119,0.05113193,2817.7,2817.4,0.0023642]
[1645258430974,0.05113193,2817.7,2817.3,1.49830868]
[1645258431371,0.05113193,2817.7,2817.4,0.0023642]
[1645258432271,0.05113193,2817.7,2817.3,1.49830868]
[1645258432470,0.05113193,2817.7,2817.4,0.0023642]
[1645258433272,0.05113193,2817.7,2817.4,0.00086536]
[1645258433473,0.05113193,2817.7,2817.3,1.49830868]
[1645258435026,0.05113193,2817.7,2817.3,0.89830868]
[1645258435229,0.91706526,2817.4,2817.2,0.90226753]
[1645258435430,0.91706526,2817.4,2817.2,1.20226753]
[1645258435631,0.91706526,2817.4,2817.2,0.00395885]
[1645258435829,1.50660145,2817.3,2817.0,0.00395885]
[1645258436428,2.52970145,2817.3,2816.8,1.00005805]
[1645258436626,1.50660145,2817.2,2816.8,1.00005805]
[1645258437227,1.50660145,2817.2,2816.9,0.30236444]
[1645258437427,0.91706526,2817.4,2816.9,0.30236444]
[1645258437627,0.91706526,2817.4,2817.0,0.00395885]
[1645258438096,1.50667623,2817.3,2817.0,0.00395885]
[1645258438475,1.50666533,2817.2,2817.0,0.00395885]
[1645258438673,1.12926526,2817.4,2817.1,0.00236435]
[1645258438872,1.50666318,2817.3,2817.1,0.00236435]
[1645258439074,1.5066581,2817.2,2817.1,0.00236435]
[1645258439277,0.03867549,2817.6,2817.1,0.00236435]
[1645258439573,0.03867549,2817.6,2816.8,1.20226753]
[1645258439574,1.50662583,2817.5,2816.8,1.20226753]
[1645258439773,1.50662583,2817.5,2817.0,0.00236437]
[1645258440678,1.50662583,2817.5,2817.0,0.98482321]
[1645258440874,1.50662583,2817.5,2817.1,0.00236432]
[1645258441822,1.50662583,2817.5,2817.0,0.98878206]
[1645258442022,1.50662583,2817.5,2817.2,0.0023643]
[1645258442226,1.10316774,2817.5,2817.2,0.03047629]
[1645258442525,0.87223912,2817.7,2817.2,0.03047629]
[1645258443127,0.87223912,2817.7,2817.2,0.02811199]
[1645258443327,0.87223912,2817.7,2817.3,0.00236427]
[1645258444324,0.87223912,2817.7,2817.2,0.02811199]
[1645258444524,0.87223912,2817.7,2817.3,0.00236429]
[1645258445325,11.72223912,2817.7,2817.3,0.00236429]
[1645258445575,11.72223912,2817.7,2817.2,0.02811199]
[1645258445776,11.72223912,2817.7,2817.3,0.00236429]
[1645258446074,0.87223912,2817.7,2817.3,0.00236429]
[1645258446773,0.87223912,2817.7,2817.2,0.02811199]
[1645258446971,0.87223912,2817.7,2817.3,0.00236429]
[1645258447172,11.72223912,2817.7,2817.3,0.00236429]
[1645258447373,0.87223912,2817.7,2817.3,0.00236429]
[1645258447769,0.87223912,2817.7,2817.5,0.02799196]
[1645258450717,11.72223912,2817.7,2817.5,0.02799196]
[1645258451124,0.87223912,2817.7,2817.5,0.02799196]
[1645258452121,0.01318348,2817.6,2817.3,0.00236433]
[1645258452719,0.01318348,2817.6,2817.0,0.00395885]
[1645258452976,0.01318348,2817.6,2817.3,0.00236427]
[1645258453976,0.01318348,2817.6,2817.0,0.00395885]
[1645258454176,0.01318348,2817.6,2817.3,0.00236427]
[1645258455178,0.01318348,2817.6,2817.0,0.00395885]
[1645258455378,0.01318348,2817.6,2817.3,0.00236427]
[1645258457522,0.01318348,2817.6,2817.0,0.00395885]
[1645258457523,0.02618211,2817.6,2817.0,0.00395885]
[1645258457720,0.02618211,2817.6,2817.3,0.00236427]
[1645258458723,0.02618211,2817.6,2817.0,0.00395885]
[1645258459026,0.02618211,2817.6,2817.3,0.00236427]
[1645258459820,0.02618211,2817.6,2817.0,0.00395885]
[1645258460019,1.12062742,2817.5,2817.0,0.00395885]
[1645258460221,1.12062742,2817.5,2817.3,0.00236427]
[1645258461069,1.12062742,2817.5,2817.0,0.00395885]
[1645258461269,1.12062742,2817.5,2817.3,0.00236425]
[1645258461972,0.01295328,2817.4,2817.3,0.00236425]
[1645258462370,1.51959174,2817.4,2817.0,0.00395885]
[1645258462569,0.01295328,2817.4,2817.2,0.00236428]
[1645258463572,0.01295328,2817.4,2817.0,0.00395885]
[1645258463770,0.01295328,2817.4,2817.2,0.0023643]
[1645258464635,0.01295328,2817.4,2817.0,0.00395885]
[1645258465037,0.01295328,2817.4,2817.2,0.0023643]
[1645258465639,0.01196801,2817.4,2817.2,0.0023643]
[1645258465840,0.01196801,2817.4,2817.0,0.00395885]
[1645258466245,1.50669384,2817.3,2817.2,0.0023643]
[1645258466640,1.48740325,2817.3,2817.2,0.0023643]
[1645258467241,1.48740325,2817.3,2817.0,0.00395885]
[1645258467439,1.50116119,2817.3,2817.0,0.00395885]
[1645258467639,0.01375794,2817.3,2817.0,0.00395885]
[1645258468074,0.01375794,2817.3,2817.0,1.12443551]
[1645258470375,0.01375794,2817.3,2817.1,3.5]
[1645258470779,0.01375794,2817.3,2817.1,3.8]
[1645258470982,0.01375794,2817.3,2817.1,3.5]
[1645258471177,0.01375794,2817.3,2817.1,4.10236155]
[1645258471829,0.01375794,2817.3,2817.1,0.30236155]
[1645258472030,0.01375794,2817.3,2817.1,0.3]
[1645258472336,4.24405787,2817.8,2817.2,0.03664251]
[1645258472535,3.2082,2817.8,2817.2,0.03664251]
[1645258473434,3.2082,2817.8,2817.3,0.00236149]
[1645258474429,3.2082,2817.8,2817.2,0.03664251]
[1645258474630,3.2082,2817.8,2817.3,0.00236151]
[1645258475473,3.2082,2817.8,2817.2,0.03664251]
[1645258475876,3.2082,2817.8,2817.3,0.00236151]
[1645258476676,3.2082,2817.8,2817.2,0.03664251]
[1645258477077,3.2082,2817.8,2817.3,0.00236151]
[1645258477480,3.2082,2817.8,2817.5,0.0364902]
[1645258477678,10.85,2817.7,2817.5,0.0364902]
[1645258479525,10.82996301,2817.7,2817.5,0.0364902]
[1645258482025,3.2082,2817.8,2817.5,0.0364902]
[1645258482224,0.01375646,2817.6,2817.3,0.00236153]
[1645258482828,0.01375646,2817.6,2817.0,0.00395885]
[1645258483076,0.01375646,2817.6,2817.3,0.00236147]
[1645258483876,0.01375646,2817.6,2817.0,0.00395885]
[1645258484076,0.01375646,2817.6,2817.1,1.19101035]
[1645258484279,0.01375646,2817.6,2817.3,0.00236147]
[1645258485077,0.01375646,2817.6,2817.0,0.00395885]
[1645258485277,0.01375646,2817.6,2817.2,0.99487314]
[1645258485483,0.01375646,2817.6,2817.3,0.00236147]
[1645258486277,0.01375646,2817.6,2817.2,0.99487314]
[1645258486725,1.50661468,2817.5,2817.3,0.00236147]
[1645258487529,1.52035671,2817.5,2817.0,0.00395885]
[1645258487726,1.50661468,2817.4,2817.3,0.00236145]
[1645258488928,1.50661468,2817.4,2817.2,0.00236148]
[1645258489929,1.50661468,2817.4,2817.0,0.86207633]
[1645258490127,1.50661468,2817.4,2817.2,0.0023615]
[1645258491182,1.50661468,2817.4,2817.0,0.86207633]
[1645258491380,1.50661468,2817.4,2817.2,0.0023615]
[1645258492181,0.01371316,2817.3,2817.2,0.0023615]
[1645258492385,0.01371316,2817.3,2817.1,0.00395885]
[1645258492581,0.01371316,2817.3,2817.2,0.0023615]
[1645258492784,1.52035749,2817.3,2817.2,0.0023615]
[1645258493590,1.52035749,2817.3,2817.1,0.00395885]
[1645258493887,1.50664433,2817.2,2817.1,0.00632037]
[1645258494087,1.50664433,2817.2,2817.1,0.00236152]
[1645258494732,1.50664433,2817.2,2817.0,0.85811748]
[1645258494929,1.50664433,2817.2,2817.0,0.86047905]
[1645258495939,0.01371316,2817.3,2817.1,3.5]
[1645258496135,0.01371316,2817.3,2817.1,4.70059657]
[1645258496332,0.01371316,2817.3,2817.2,4.40059657]
[1645258496830,0.01371316,2817.3,2817.2,5.70059657]
[1645258497631,9.65314404,2818.0,2817.6,0.96378975]
[1645258497831,1.50644883,2817.9,2817.2,4.683]
[1645258498079,1.50644883,2817.9,2817.2,4.983]
[1645258498678,1.50644883,2817.9,2817.3,0.00236151]
[1645258498976,1.50644883,2817.9,2817.3,1.19493655]
[1645258499577,1.50644883,2817.9,2817.3,1.19257504]
[1645258499776,1.50644883,2817.9,2817.3,1.19493657]
[1645258500780,1.50644883,2817.9,2817.3,1.19257504]
[1645258500984,1.50489163,2817.9,2817.3,1.19493657]
[1645258501846,12.35489163,2817.9,2817.3,0.00236153]
[1645258502043,12.63597261,2817.9,2817.2,1.183]
[1645258502339,12.63597261,2817.9,2817.5,0.05387744]
[1645258504941,12.63587578,2817.9,2817.5,0.05387744]
[1645258507380,1.78587578,2817.9,2817.5,0.05387744]
[1645258507580,9.65314404,2818.0,2817.5,0.05387744]
[1645258507780,9.65314404,2818.0,2817.3,0.00236157]
[1645258507986,9.65314404,2818.0,2817.3,3.5]
[1645258508184,9.65314404,2818.0,2817.3,3.50236158]
[1645258508981,0.81648061,2817.6,2817.3,3.50236158]
[1645258509227,1.83195815,2817.6,2817.3,3.5]
[1645258509427,1.01547754,2817.6,2817.3,3.50236155]
[1645258509630,1.01547754,2817.4,2817.3,3.50236155]
[1645258510235,1.01547754,2817.4,2817.3,3.50125612]
[1645258510430,1.01547754,2817.4,2817.3,3.49889457]
[1645258512334,1.01547754,2817.4,2817.3,5.39949114]
[1645258513483,1.01547754,2817.4,2817.3,4.39949114]
[1645258513683,1.01547754,2817.4,2817.3,5.39949114]
[1645258514489,2.03095508,2817.4,2817.3,4.49889457]
[1645258515284,2.03095508,2817.4,2817.3,5.39949114]
[1645258515488,2.03095508,2817.4,2817.3,5.40059657]
[1645258515687,2.03095508,2817.4,2817.3,0.90059657]
[1645258515887,2.03095508,2817.4,2817.2,2.55161896]
[1645258516086,2.03095508,2817.4,2817.3,3.5]
[1645258516288,1.01547754,2817.4,2817.2,2.54925748]
[1645258516491,2.03095508,2817.4,2817.3,3.5]
[1645258517734,2.08462786,2817.4,2817.3,3.5]
[1645258517936,2.07142786,2817.4,2817.3,5.02]
[1645258518536,1.2193946,2817.4,2817.3,5.20397566]
[1645258519536,0.00565658,2817.9,2817.5,0.18397566]
[1645258519733,0.00565658,2817.9,2817.8,2.23629219]
[1645258519934,9.65314404,2818.0,2817.8,2.23629219]
[1645258519935,9.65314404,2818.0,2817.8,6.25629219]
[1645258520135,9.65314404,2818.0,2817.8,5.65691802]
[1645258520779,9.65314404,2818.0,2817.8,2.15691802]
[1645258527437,0.01072717,2817.9,2817.8,2.15691802]
[1645258530786,0.01072717,2817.9,2817.8,1.85691802]
[1645258532737,9.65314404,2818.0,2817.8,1.90093207]
[1645258533935,9.65314404,2818.0,2817.8,0.74798971]
[1645258537489,9.65314404,2818.0,2817.8,0.73761522]
[1645258538989,9.65314404,2818.0,2817.8,0.38761522]
[1645258542136,0.01174964,2817.9,2817.8,0.37626695]
[1645258542736,0.01174964,2817.9,2817.6,2.35774499]
[1645258542989,0.01174964,2817.9,2817.6,2.65774499]
[1645258543286,0.01174964,2817.9,2817.6,6.15774499]
[1645258544487,0.01174964,2817.9,2817.6,2.65774499]
[1645258548734,0.01174964,2817.9,2817.6,7.04503499]
[1645258548955,0.01174964,2817.9,2817.6,7.94440916]
[1645258550588,0.01174964,2817.9,2817.7,0.88725]
[1645258550790,0.01174964,2817.9,2817.7,1.18725]
[1645258551788,0.01174964,2817.9,2817.7,2.19937417]
[1645258553191,0.01174964,2817.9,2817.7,0.3]
[1645258553592,0.01174964,2817.9,2817.8,0.52]
[1645258553792,0.01174964,2817.9,2817.8,4.02]
[1645258554234,0.01174964,2817.9,2817.8,5.02]
[1645258554639,9.65170766,2818.0,2817.9,6.5]
[1645258554841,9.65170766,2818.0,2817.9,11.82]
[1645258555037,9.65170766,2818.0,2817.9,12.12]
[1645258555238,9.65170766,2818.0,2817.9,6.96906125]
[1645258556241,9.65170766,2818.0,2817.9,5.62]
[1645258556439,9.65170766,2818.0,2817.9,6.5178346]
[1645258556642,9.65170766,2818.0,2817.9,5.62]
[1645258559109,9.24999598,2818.0,2817.9,5.62]
[1645258562338,9.24999598,2818.0,2817.9,5.66812499]
[1645258563139,9.24999598,2818.0,2817.9,2.16812499]
[1645258564139,9.24999598,2818.0,2817.9,5.66812499]
[1645258564641,9.24999598,2818.0,2817.9,2.16812499]
[1645258565685,9.24999598,2818.0,2817.9,5.66812499]
[1645258567386,9.24999598,2818.0,2817.9,2.16812499]
[1645258567786,9.24999598,2818.0,2817.9,5.66812499]
[1645258570035,9.24999598,2818.0,2817.9,2.16812499]
[1645258570937,9.24999598,2818.0,2817.9,5.66812499]
[1645258571938,9.24999598,2818.0,2817.9,5.62]
[1645258574192,9.24999598,2818.0,2817.9,2.12]
[1645258576838,9.24190404,2818.0,2817.9,2.12]
[1645258578439,9.24190404,2818.0,2817.9,1.12]
[1645258585351,9.24190404,2818.0,2817.9,2.01855658]
[1645258585752,9.24190404,2818.0,2817.9,1.12]
[1645258589094,9.24190404,2818.0,2817.9,0.89930876]
[1645258589292,9.24190404,2818.0,2817.6,2.06972625]
[1645258589489,9.24190404,2818.0,2817.6,2.66972625]
[1645258590290,9.24190404,2818.0,2817.6,1.77041749]
[1645258590693,9.24190404,2818.0,2817.6,1.49930876]
[1645258592039,3.5,2817.9,2817.6,0.6]
[1645258592244,3.5,2817.9,2817.5,1.19930876]
[1645258592439,3.50565658,2817.9,2817.5,1.19930876]
[1645258593438,0.00565658,2817.9,2817.5,1.19930876]
[1645258593637,3.50565658,2817.9,2817.5,1.19930876]
[1645258594639,0.00565658,2817.9,2817.5,1.19930876]
[1645258595239,0.00565658,2817.9,2817.6,0.89930876]
[1645258595488,0.00565658,2817.9,2817.6,0.3]
[1645258595691,3.50565658,2817.9,2817.5,0.89930876]
[1645258595889,0.00565658,2817.9,2817.5,1.19930876]
[1645258596087,3.50565658,2817.9,2817.5,1.19930876]
[1645258596488,0.00565658,2817.9,2817.5,1.19930876]
[1645258596689,3.50565658,2817.9,2817.5,1.19930876]
[1645258596892,0.00565658,2817.9,2817.5,1.19930876]
[1645258597090,3.50565658,2817.9,2817.5,1.19930876]
[1645258597291,0.00565658,2817.9,2817.5,1.19930876]
[1645258597495,0.00565658,2817.9,2817.8,0.02439471]
[1645258597692,9.24190404,2818.0,2817.8,0.02439471]
[1645258599543,9.24082447,2818.0,2817.8,0.02439471]
[1645258602044,9.24082447,2818.0,2817.5,1.49930876]
[1645258605498,9.24082447,2818.0,2817.6,0.89930876]
[1645258605699,9.24082447,2818.0,2817.5,1.49930876]
[1645258609739,9.24082447,2818.0,2817.5,1.44930876]
[1645258615939,9.24082447,2818.0,2817.5,0.89930876]
[1645258616138,9.24082447,2818.0,2817.4,0.89930876]
[1645258616340,9.24082447,2818.0,2817.4,1.19930876]
[1645258616738,9.24082447,2818.0,2817.4,0.89930876]
[1645258617041,3.5,2817.9,2817.4,0.89930876]
[1645258617243,3.5,2817.9,2817.3,0.90326761]
[1645258617439,9.24082447,2818.0,2817.3,0.90543143]
[1645258617643,5.00636172,2817.9,2817.3,0.00612267]
[1645258617841,1.50636172,2817.8,2817.3,0.00612267]
[1645258618092,3.5,2817.9,2817.3,0.00612267]
[1645258618493,3.5,2817.9,2817.3,0.00395885]
[1645258618692,3.5,2817.9,2817.3,0.00612263]
[1645258619096,9.24082447,2818.0,2817.3,0.90543139]
[1645258619695,9.24082447,2818.0,2817.3,0.90326761]
[1645258619895,9.24082447,2818.0,2817.3,0.90543141]
[1645258620095,9.24082447,2818.0,2817.3,1.50543141]
[1645258620495,9.24082447,2818.0,2817.3,1.20543141]
[1645258620901,9.24082447,2818.0,2817.3,1.50326761]
[1645258621197,9.24082447,2818.0,2817.3,1.50543141]
[1645258621397,9.24082447,2818.0,2817.3,1.20543141]
[1645258621598,9.24082447,2818.0,2817.3,1.50543141]
[1645258622042,9.24082447,2818.0,2817.3,0.90326761]
[1645258622243,9.24082447,2818.0,2817.5,0.02517235]
[1645258624046,9.22137431,2818.0,2817.5,0.02517235]
[1645258625688,9.22703089,2818.0,2817.5,0.02517235]
[1645258626891,9.22703089,2818.0,2817.5,0.32517235]
[1645258627291,9.22703089,2818.0,2817.7,0.01233194]
[1645258631346,3.5,2817.9,2817.7,0.01233194]
[1645258631541,1.50633224,2817.8,2817.7,0.01233194]
[1645258632140,1.50633224,2817.8,2817.5,0.3]
[1645258632740,3.5,2817.9,2817.5,0.3]
[1645258633187,9.22703089,2818.0,2817.5,0.3]
[1645258633386,1.50632185,2817.9,2817.5,0.3]
[1645258635690,1.50632185,2817.9,2817.5,1.19930876]
[1645258637643,5.00632185,2817.9,2817.5,1.19930876]
[1645258637843,1.50632185,2817.8,2817.5,1.19930876]
[1645258638042,9.22703089,2818.0,2817.5,1.19930876]
[1645258638244,1.50630169,2817.9,2817.5,1.19930876]
[1645258644347,1.50483995,2817.9,2817.5,1.19930876]
[1645258645445,1.50483995,2817.9,2817.5,0.3]
[1645258645645,1.50483995,2817.9,2817.5,1.19930876]
[1645258645946,1.50483995,2817.9,2817.5,0.3]
[1645258646145,1.50483995,2817.9,2817.4,1.20321005]
[1645258646346,1.50483995,2817.9,2817.5,0.89930876]
[1645258646945,1.50483995,2817.9,2817.6,0.89930876]
[1645258647151,1.50483995,2817.9,2817.6,1.19930876]
[1645258647348,9.22703089,2818.0,2817.7,0.89930876]
[1645258647745,9.22703089,2818.0,2817.6,0.6]
[1645258647746,9.22703089,2818.0,2817.8,0.89930876]
[1645258647990,9.22137431,2818.0,2817.8,0.89930876]
[1645258648191,9.22137431,2818.0,2817.6,1.49930876]
[1645258648392,9.22703089,2818.0,2817.6,1.19930876]
[1645258648593,9.22703089,2818.0,2817.6,0.89930876]
[1645258649193,9.22703089,2818.0,2817.7,0.89930876]
[1645258649393,9.22703089,2818.0,2817.6,0.89930876]